Cogmind - Beta 13 @@@ ROGUE MODE // 2024.04.07 @ 19:08:01 Player: Cwaftwer Result: Destroyed by P-60 Hacker with Shock Rifle Performance ------------- Evolutions (3) 1500 Regions Visited (6) 1200 Robots Destroyed (23) 115 Value Destroyed (618) 618 Prototype IDs (26) 520 Alien Tech Used (0) 0 Bonus (360) 360 TOTAL SCORE: 4313 Bonus ------- Follower Combat Kills 60 Aligned with FarCom 300 Cogmind --------- Core Integrity 0/700 Matter 200/300 Energy 213/450 System Corruption 2% Temperature Cool (0) Movement Flying (520) Ox6 Location -7/Factory Parts ------- > --- POWER (2) -------- Deuterium Engine Deuterium Engine > --- PROPULSION (3) --- Flight Unit > --- UTILITY (4) ------ Propulsion Shielding Improved Shield Generator > --- WEAPON (4) ------- Heavy Laser > --- INVENTORY (5) ---- Deuterium Engine Peak State ------------ > --- POWER ------------ Ion Engine Light Nuclear Core > --- PROPULSION ------- Armored Wheel Armored Huge Wheel > --- UTILITY ---------- Improved Heat Sink Lightpack 2.0 > --- WEAPON ----------- Heavy Laser Heavy Laser Heavy Laser Improved Grenade Launcher > --- INVENTORY -------- Flight Unit Flight Unit Small Storage Unit High-capacity Matter Pod Terrain Scanner Propulsion Shielding Heavy Laser Rocket Launcher Improved Grenade Launcher [Rating: 63] Favorites ----------- Power Ion Engine Engine Ion Engine Power Core Light Nuclear Core Propulsion Armored Wheel Wheel Armored Wheel Flight Unit Flight Unit Utility Lightpack 2.0 Device Terrain Scanner Storage Lightpack 2.0 Protection Propulsion Shielding Weapon Heavy Laser Energy Gun Heavy Laser Energy Cannon Advanced Beam Cannon Ballistic Gun Light Assault Rifle Launcher Rocket Launcher Special Weapon Mining Laser Build | -11 -10 -10 -10 -9 -8 -7 ------- Run | Yrd Mat Min Exi Min Mat Fac Slots Evolved 6 | . . . . . 4 2 Power 1 | . . . . . 1 . Propulsion 1 | . . . . . 1 . Utility 2 | . . . . . 2 . Weapon 2 | . . . . . . 2 Parts Attached 54 | 7 . 11 7 . 12 17 Power 7 | 1 . 2 . . 2 2 Engine 5 | 1 . 1 . . 1 2 Core 2 | . . 1 . . 1 . Reactor . | . . . . . . . Propulsion 16 | 2 . 4 6 . 1 3 Treads . | . . . . . . . Leg . | . . . . . . . Wheel 8 | 2 . 2 2 . 1 1 Hover . | . . . . . . . Flight 8 | . . 2 4 . . 2 Utility 11 | 2 . 1 . . 4 4 Device 5 | 1 . 1 . . 1 2 Storage 2 | 1 . . . . 1 . Processor . | . . . . . . . Hackware . | . . . . . . . Protection 4 | . . . . . 2 2 Artifact . | . . . . . . . Weapon 20 | 2 . 4 1 . 5 8 Energy Gun 8 | . . 1 . . 3 4 Energy Cannon 1 | . . . . . 1 . Ballistic Gun 6 | 2 . 2 1 . . 1 Ballistic Cannon . | . . . . . . . Launcher 4 | . . . . . 1 3 Special Weapon 1 | . . 1 . . . . Impact Weapon . | . . . . . . . Slashing Weapon . | . . . . . . . Piercing Weapon . | . . . . . . . Special Melee Weapon . | . . . . . . . Unidentified Prototypes 1 | . . . . . 1 . Parts Lost 14 | . . 1 . . . 13 Power 2 | . . . . . . 2 Propulsion 3 | . . . . . . 3 Utility 4 | . . 1 . . . 3 Weapon 5 | . . . . . . 5 Highest Loss Streak 11 | . . 1 . . . 11 To Critical Strikes . | . . . . . . . Average Slot Usage (%) 72 | . 100 94 85 85 61 64 Engine 5 | . 14 1 . . 8 6 Core 5 | . . 10 . . 8 5 Wheel 9 | . 28 26 1 . 8 11 Flight 7 | . . 1 26 28 . . Device 6 | . 14 11 14 14 . 5 Storage 10 | . 14 14 14 14 9 6 Protection 4 | . . . . . 8 1 Energy Gun 10 | . . 10 . . 15 14 Ballistic Gun 11 | . 28 16 28 28 2 4 Naked Turns . | . . . . . . . Heaviest Build 34 | 14 14 14 8 8 26 34 Greatest Support 40 | 20 20 20 20 8 12 40 Greatest Overweight (x) 6 | . . . . . 2 6 Average Overweight (x) . | . . . . . . . Largest Inventory Capacity 40 | 8 8 8 8 8 40 40 Average Capacity 26 | 7 8 8 8 8 39 36 Most Carried 12 | 5 8 8 8 8 12 12 Average Carried 9 | 2 4 7 7 7 10 9 Final Capacity 40 | 8 8 8 8 8 40 5 Final Carried 11 | 4 8 8 8 8 11 1 Class Distribution -------------------- 44% | Hauler-Mutant 18% | Scavenger-Scout 14% | Mutant 14% | Hauler-Skirmisher 8% | Scavenger-Mutant Dominant Class ---------------- Mutant | -10/Materials Mutant | -10/Mines Scavenger-Mutant | -10/Exiles Scavenger-Scout | -9/Mines Hauler-Mutant | -8/Materials Hauler-Skirmisher | -7/Factory Resources | -11 -10 -10 -10 -9 -8 -7 ----------- Run | Yrd Mat Min Exi Min Mat Fac Matter Collected 1096 | 310 28 168 145 4 41 400 Remotely . | . . . . . . . Salvage Created 803 | 115 40 135 . . 106 407 Parts 38 | 4 3 8 . . 9 14 Haulers Intercepted 1 | . . . . . 1 . Recyclers Shooed . | . . . . . . . Parts Field Recycled . | . . . . . . . Retrieved Matter . | . . . . . . . Parts Self-Destructed . | . . . . . . . Prevented . | . . . . . . . Kills | -11 -10 -10 -10 -9 -8 -7 ------- Run | Yrd Mat Min Exi Min Mat Fac Combat Hostiles Destroyed 16 | . 3 5 . . 1 7 Guns 16 | . 3 5 . . 1 7 Classes Destroyed 10 | 2 1 1 . . 2 4 Worker 1 | . . . . . . 1 Builder 1 | . . . . . . 1 Tunneler 2 | 2 . . . . . . Hauler 1 | . . . . . 1 . Recycler 1 | 1 . . . . . . Operator 1 | . . . . . 1 . Swarmer 6 | . 3 3 . . . . Grunt 5 | . . 2 . . 1 2 Brawler 1 | . . . . . . 1 Sentry 4 | . . . . . . 4 Best Kill Streak 3 | 3 3 3 . . 1 3 Combat Bots Only 3 | . 3 3 . . 1 3 Max Kills in Single Turn 1 | 1 1 1 . . 1 1 Gunslinging . | . . . . . . . Exploded . | . . . . . . . Melee . | . . . . . . . Uniques/NPCs Destroyed . | . . . . . . . Combat | -11 -10 -10 -10 -9 -8 -7 -------- Run | Yrd Mat Min Exi Min Mat Fac Hostile Shots Fired 222 | . 18 41 . . . 163 Missed 54 | . 2 9 . . . 43 Damage Taken 2424 | . 136 319 . . 24 1945 Core 829 | . 22 97 . . 8 702 Absorbed by Shields 4 | . . . . . . 4 Redirected to Shielding 12 | . . . . . . 12 Regen/Repaired (Parts) 24 | . . . . . 24 . Core Remaining (%) 83 | 100 . . . 52 98 . Volleys Fired 95 | 10 11 25 . 2 10 37 Largest 4 | 2 2 2 . 2 2 4 Hottest 243 | 40 40 100 . 40 138 243 Shots Fired 202 | 20 22 47 . 4 18 91 Gun 186 | 20 22 44 . 4 16 80 Cannon . | . . . . . . . Launcher 13 | . . . . . 2 11 Special 3 | . . 3 . . . . Kinetic 98 | 20 22 22 . 4 6 24 Thermal 91 | . . 25 . . 10 56 Explosive 13 | . . . . . 2 11 Electromagnetic . | . . . . . . . Robot Hit Streak 20 | 11 20 9 . 3 5 15 Robot Miss Streak 3 | 1 2 3 . 3 1 3 Penetration Max . | . . . . . . . Secondary Targets 2 | . 1 . . . . 1 Max Gunslinging Chain 1 | . 1 . . . . 1 Shots Hit Robots 123 | 15 16 29 . 1 6 56 Core Hits 58 | 4 5 11 . . 4 34 Critical Kills . | . . . . . . . Critical Parts Destroyed 1 | 1 . . . . . . Critical Strikes 5 | 1 . 1 . . 1 2 Burn 4 | . . 1 . . 1 2 Destroy 1 | 1 . . . . . . Melee Attacks . | . . . . . . . Impact . | . . . . . . . Slashing . | . . . . . . . Piercing . | . . . . . . . Sneak Attacks . | . . . . . . . Combat Hostiles . | . . . . . . . Follow-up Attacks . | . . . . . . . Damage Inflicted 2209 | 167 169 297 . 7 115 1454 Guns 1794 | 167 169 297 . 7 69 1085 Cannons . | . . . . . . . Explosions 415 | . . . . . 46 369 Melee . | . . . . . . . Ramming . | . . . . . . . Kinetic 693 | 167 169 97 . 7 33 220 Thermal 1101 | . . 200 . . 36 865 Explosive 415 | . . . . . 46 369 Electromagnetic . | . . . . . . . Impact . | . . . . . . . Slashing . | . . . . . . . Piercing . | . . . . . . . Highest Corruption 2 | . . . . . . 2 Average Corruption 1 | . . . . . . 1 Corruption Purged . | . . . . . . . Corruption Blocked . | . . . . . . . Effects 2 | . . . . . . 2 Matter Fused 1 | . . . . . . 1 Energy Discharges 1 | . . . . . . 1 Overload Shots . | . . . . . . . Overflow Damage . | . . . . . . . Projectiles . | . . . . . . . Explosions . | . . . . . . . Melee . | . . . . . . . Knockbacks . | . . . . . . . Impact . | . . . . . . . Kinetic . | . . . . . . . Secondary . | . . . . . . . Self-Inflicted Damage 158 | . . . . . 25 133 Shots 4 | . . . . . 1 3 Rammed . | . . . . . . . Targets Rammed . | . . . . . . . Kicked . | . . . . . . . Crushed . | . . . . . . . Highest Temperature 894 | . . 214 . . 324 894 Average Temperature 231 | . . 69 . . 135 356 Received Heat Transfer 672 | . . 78 . . . 594 Effects 40 | . . 2 . . . 38 Shutdowns 6 | . . . . . . 6 Energy Bleed 5 | . . . . . . 5 Interference 4 | . . 2 . . . 2 Matter Decay 5 | . . . . . . 5 Short Circuit 6 | . . . . . . 6 Damage (minor) 4 | . . . . . . 4 Damage (major) 7 | . . . . . . 7 Damage (core) 3 | . . . . . . 3 Siege Activations . | . . . . . . . Robots Corrupted . | . . . . . . . Combat Hostiles . | . . . . . . . Parts Fried . | . . . . . . . Impact Corruptions . | . . . . . . . Robots Melted . | . . . . . . . Combat Hostiles . | . . . . . . . Parts Melted 8 | . . 3 . . 1 4 Heat Transferred 2415 | . . 666 . . 148 1601 Parts Sabotaged . | . . . . . . . Parts Stolen . | . . . . . . . Parts Stripped . | . . . . . . . Power Chain Reactions . | . . . . . . . Alert | -11 -10 -10 -10 -9 -8 -7 ------- Run | Yrd Mat Min Exi Min Mat Fac Peak Influence 157 | 15 121 157 . 53 56 147 Initial 46 | . 9 46 . . 20 24 Average 28 | 4 75 102 . 7 14 42 Maximum Alert Level . | . . . . . . . Low Security (%) 100 | 100 100 100 . 100 100 100 Level 1 . | . . . . . . . Level 2 . | . . . . . . . Level 3 . | . . . . . . . Level 4 . | . . . . . . . Level 5 . | . . . . . . . High Security . | . . . . . . . Max Security . | . . . . . . . Squads Dispatched 8 | . 1 . . . . 7 Investigation 1 | . 1 . . . . . Extermination . | . . . . . . . Reinforcement 2 | . . . . . . 2 Assault 1 | . . . . . . 1 Garrison 4 | . . . . . . 4 Intercept . | . . . . . . . Searches Triggered . | . . . . . . . Construction Impeded 2 | . . . . . . 2 Haulers Reinforced . | . . . . . . . Active Scanning Responses . | . . . . . . . Cargo Convoy Interrupts . | . . . . . . . Stealth | -11 -10 -10 -10 -9 -8 -7 --------- Run | Yrd Mat Min Exi Min Mat Fac Distress Signals . | . . . . . . . Communications Jammed . | . . . . . . . Distress Signals . | . . . . . . . Times Spotted 30 | . 6 5 . 2 2 15 Peak Tracking Total 6 | . 6 3 . 2 1 5 Tactical Retreats 2 | . . . . . . 2 Traps | -11 -10 -10 -10 -9 -8 -7 ------- Run | Yrd Mat Min Exi Min Mat Fac Traps Triggered 1 | . 1 . . . . . Indirectly . | . . . . . . . Trap Hack Attempts . | . . . . . . . Triggered . | . . . . . . . Disarmed . | . . . . . . . Reprogrammed . | . . . . . . . Reused . | . . . . . . . Traps Extracted . | . . . . . . . Installed . | . . . . . . . Triggered . | . . . . . . . Machines | -11 -10 -10 -10 -9 -8 -7 ---------- Run | Yrd Mat Min Exi Min Mat Fac Machines Disabled 2 | . . . . . 2 . Max in Single Turn 1 | . . . . . 1 . Garrison Access 1 | . . . . . . 1 Machines Repaired . | . . . . . . . Machines Dismantled . | . . . . . . . Machines Sabotaged . | . . . . . . . Overloaded Fab Kills . | . . . . . . . Hacking | -11 -10 -10 -10 -9 -8 -7 --------- Run | Yrd Mat Min Exi Min Mat Fac Machines Accessed 12 | . 1 . 5 1 4 1 Terminals 4 | . 1 . . . 2 1 Fabricators . | . . . . . . . Repair Stations 1 | . . . . . 1 . Recycling Units . | . . . . . . . Scanalyzers 1 | . . . . . 1 . Garrison Access . | . . . . . . . Total Hacks 68 | . 4 . 50 1 10 3 Successful 62 | . 2 . 50 1 8 1 Failed 6 | . 2 . . . 2 2 Catastrophic 1 | . . . . . 1 . Database Lockouts . | . . . . . . . Manual 1 | . . . 1 . . . Terminals 12 | . 4 . . . 5 3 Fabricators . | . . . . . . . Repair Stations 2 | . . . . . 2 . Recycling Units . | . . . . . . . Scanalyzers 3 | . . . . . 3 . Garrison Access . | . . . . . . . Terminal Hacks 58 | . 2 . 50 1 4 1 Record 52 | . . . 49 . 2 1 Prototype ID Bank 1 | . 1 . . . . . Open Door 1 | . . . . 1 . . Branch Access Points 2 | . 1 . . . 1 . Alert Level 1 | . . . . . 1 . Derelict Proto ID Bank 1 | . . . 1 . . . Fabricator Hacks . | . . . . . . . Repair Station Hacks 2 | . . . . . 2 . Scan Component 1 | . . . . . 1 . Repair 1 | . . . . . 1 . Recycling Unit Hacks . | . . . . . . . Scanalyzer 2 | . . . . . 2 . Insert Component 1 | . . . . . 1 . Analyze 1 | . . . . . 1 . Garrison Access Hacks . | . . . . . . . Unauthorized Hacks . | . . . . . . . Terminals . | . . . . . . . Fabricators . | . . . . . . . Repair Stations . | . . . . . . . Recycling Units . | . . . . . . . Scanalyzers . | . . . . . . . Garrison Access . | . . . . . . . Data Cores Recovered . | . . . . . . . Used . | . . . . . . . Hacking Detections 6 | . 1 . . . 4 1 Full Trace Events . | . . . . . . . Feedback Events . | . . . . . . . Feedback Blocked . | . . . . . . . Robot Schematics Acquired . | . . . . . . . Robots Built . | . . . . . . . Authchips . | . . . . . . . Time . | . . . . . . . Total Robot Build Rating . | . . . . . . . Part Schematics Acquired 1 | . . . . . 1 . Parts Built . | . . . . . . . Authchips . | . . . . . . . Time . | . . . . . . . Total Part Build Rating . | . . . . . . . Parts Repaired 1 | . . . . . 1 . Time 26 | . . . . . 26 . Parts Recycled . | . . . . . . . Recycled Matter . | . . . . . . . Retrieved Matter . | . . . . . . . Retrieved Components . | . . . . . . . Parts Scanalyzed 1 | . . . . . 1 . Part Schematics Acquired 1 | . . . . . 1 . Parts Damaged . | . . . . . . . Bothacking | -11 -10 -10 -10 -9 -8 -7 ------------ Run | Yrd Mat Min Exi Min Mat Fac Used RIF Installer . | . . . . . . . Robots Hacked . | . . . . . . . Non-combat . | . . . . . . . Combat . | . . . . . . . Robot Hacks Applied . | . . . . . . . Relay Couplers Released 1 | . . . . . . 1 Machine Destruction 1 | . . . . . . 1 Fabnet Peak Effective % . | . . . . . . . Robots Rewired . | . . . . . . . Allies Hacked . | . . . . . . . Hacks Repelled . | . . . . . . . Allies | -11 -10 -10 -10 -9 -8 -7 -------- Run | Yrd Mat Min Exi Min Mat Fac Total Allies 1 | . . . . 1 . . Largest Group 1 | . . . . 1 1 . Highest-Rated Group 31 | . . . . 31 31 . Highest-Rated Ally 31 | . . . . 31 31 . Total Orders . | . . . . . . . Ally Attacks 10 | . . . . 7 3 . Total Damage 130 | . . . . 65 65 . Kills 3 | . . . . 2 1 . Allies Corrupted . | . . . . . . . Allies Melted . | . . . . . . . Intel | -11 -10 -10 -10 -9 -8 -7 ------- Run | Yrd Mat Min Exi Min Mat Fac Robot Analysis Total . | . . . . . . . Derelict Logs Recovered 2 | . . 1 . 1 . . Drone Launches . | . . . . . . . Drone Recoveries . | . . . . . . . Exploration | -11 -10 -10 -10 -9 -8 -7 ------------- Run | Yrd Mat Min Exi Min Mat Fac Turns Passed 3661 | 90 116 343 238 653 1595 626 Spaces Moved 2074 | 60 100 296 551 435 344 288 Core 19 | 13 . . . . . 6 Treads . | . . . . . . . Legs . | . . . . . . . Wheels 857 | 47 100 263 8 . 279 160 Hover . | . . . . . . . Flight 1198 | . . 33 543 435 65 122 Fastest Speed 37 | 50 80 37 37 37 37 40 Average Speed 60 | 73 80 75 37 37 92 79 Slowest Speed 520 | 80 80 80 80 37 120 520 Overloaded Moves . | . . . . . . . Propulsion Burnouts . | . . . . . . . Robots Hopped 2 | . . 1 . 1 . . Cave-ins Triggered . | . . . . . . . Exploration Rate (%) 44 | 5 25 62 91 90 26 10 Regions Visited 6 Branch Regions 3 Pre-discovered Areas 1 | . . . 1 . . . Known Exits Taken 2 | . 1 1 . . . . Unknown Exits Taken 4 | 1 . . 1 1 1 . Scrap Searched 3 | . . 1 . 2 . . Spaces Dug 9 | . . . . . . 9 Terrain Destroyed 56 | . . 2 . . 18 36 Melee . | . . . . . . . Projectile 2 | . . 2 . . . . AOE 54 | . . . . . 18 36 Terrain Rammed . | . . . . . . . Walls Destroyed . | . . . . . . . Machines Disabled . | . . . . . . . Actions | -11 -10 -10 -10 -9 -8 -7 --------- Run | Yrd Mat Min Exi Min Mat Fac Total 4303 | 87 115 368 583 924 1604 622 Wait 2004 | . 1 22 13 481 1219 268 Move 2064 | 59 99 293 550 432 343 288 Hop 2 | . . 1 . 1 . . Pick Up 53 | 11 4 8 4 4 14 8 Fast Attach . | . . . . . . . Attach 37 | 7 . 7 2 . 6 15 Detach 5 | . . 1 2 . 1 1 Swap 17 | . . 4 5 . 6 2 Drop 26 | . . 7 7 4 5 3 Fire 95 | 10 11 25 . 2 10 37 Melee . | . . . . . . . Ram . | . . . . . . . Kick . | . . . . . . . Crush . | . . . . . . . Escape Stasis . | . . . . . . . Rewire . | . . . . . . . Trap . | . . . . . . . Miscellaneous . | . . . . . . . Route ------- -11/Scrapyard -10/Materials (discovered 2 exits: *Min x2) -10/Mines (discovered 3 exits: [*Mat x2] / *Exi) -10/Exiles -9/Mines -8/Materials -7/Factory History --------- Turn | Location | Event 5 | -11/Scrapyard | Discovered new exit (range 16) 91 | -11/Scrapyard | Entered Materials 112 | -10/Materials | Identified exit to Mines 207 | -10/Materials | Entered Mines 311 | -10/Mines | Build established: Mutant 358 | -10/Mines | Discovered new exit (range 10) 388 | -10/Mines | Discovered new exit (range 10) 500 | -10/Mines | Identified exit to Exiles 550 | -10/Mines | Entered Exiles 565 | -10/Exiles | Met 8R-AWN 571 | -10/Exiles | Met EX-HEX 606 | -10/Exiles | Met EX-DEC 635 | -10/Exiles | Visited The Gauntlet 692 | -10/Exiles | Learned location of Zion (-6) 699 | -10/Exiles | Met EX-BIN 704 | -10/Exiles | Aligned with FarCom system 705 | -10/Exiles | Given EX-Vault access code 728 | -10/Exiles | Opened EX-Vault 733 | -10/Exiles | Found Lightpack 2.0 743 | -10/Exiles | Warned to stay clear of 0b10 Research branches 772 | -10/Exiles | Build established: Scavenger-Mutant 784 | -10/Exiles | Discovered new exit (range 14) 788 | -10/Exiles | Left Exiles lab with Lightpack 2.0 788 | -10/Exiles | Entered Mines 790 | -9/Mines | Found the Drone Emporium 791 | -9/Mines | Learned Materials emergency access door positions 793 | -9/Mines | Found Prototype Device 1081 | -9/Mines | Build established: Scavenger-Scout 1288 | -9/Mines | Discovered new exit (range 5) 1290 | -9/Mines | Received a Rocket Launcher from a helpful Derelict 1295 | -9/Mines | Received a Mining Laser from a helpful Derelict 1441 | -9/Mines | Entered Materials 1441 | -8/Materials | Accompanied by 1 ally 1441 | -8/Materials | Evolved 4 slots: Power x1, Propulsion x1, Utility x2 1529 | -8/Materials | Repaired Propulsion Shielding 1751 | -8/Materials | Build established: Hauler-Mutant 3016 | -8/Materials | Discovered new exit (range 3) 3036 | -8/Materials | Entered Factory 3036 | -7/Factory | Evolved 2 slots: Weapon x2 3346 | -7/Factory | Build established: Hauler-Skirmisher 3588 | -7/Factory | Core integrity fell below 50% 3594 | -7/Factory | Core integrity fell below 20% 3629 | -7/Factory | Lost 11 parts (1p3n3u4w) 3662 | -7/Factory | Destroyed by P-60 Hacker with Shock Rifle Last Messages --------------- K-01 Serf collects debris. Overheating: Core damaged (-98). Overheating: Matter decay (-18). Broken Gatling Laser destroyed. K-01 Serf collects debris. Overheating: Imp. Light Armor Plating damaged (-4). Overheating: Core damaged (-98). System corrupted: Matter fused (-7). Imp. Light Armor Plating destroyed. Lightpack 2.0 destroyed. Flight Unit destroyed. Extracted 200 matter. System corrupted: Energy discharge (-28). Acquired Deuterium Engine. K-01 Serf cleans the Fabricator. Acquired Deuterium Engine. K-01 Serf cleans the Power Conduit. Dropped Sml. Storage Unit. Acquired Imp. Shield Generator. Map ----- +----------------------------------------------------+ | ?????????????????????????????????????????????????? | | ?????????????????????????????????????????????????? | | ?????????????????????????????????????????????????? | | ?????????????????????????????????????????????????? | | ?????????????????????????????????????????????????? | | ?????????????????????????????????????????????????? | | ?????????????????????????????????????????????????? | | ?????????????????????????????????????????????????? | | ?????????????????????????????????????????????????? | | ?????????????????????????????????????????????????? | | ?????????????????????????????????????????????????? | | ??????????????g??????????????????????????????????? | | ?????????????????????????????????????????????????? | | ?????????????????????????????????????????????????? | | ?????????????????????????????????????????????????? | | ?????????????????????????????????????????????????? | | ???????????? ??????????????????????????????????? | | ???????????# ??????????????????????????????????? | | ?????????Y?# ??????????????????????????????????? | | ???????????# ??????????????????????????????????? | | ???????????# ??????????????????????????????????? | | ???????????# ??????????????????????????????????? | | ???????????# #########+######??????????????????? | | ???????????# # | #??????????????????? | | ???????????# #! p #??????????????????? | | ???????????# # """ """@""" #??????????????????? | | ???????????# # """ """ """ #??????????????????? | | ???????????# # """ """ """ #??????????????????? | | ???????????# # #??????????????????? | | ???????????# # """ """ """ #??????????????????? | | ???????????# + """ """ """ #??????????????????? | | ???????????# # """ """ """ #??????????????????? | | ???????????# # #??????????????????? | | ???????????# ################??????????????????? | | ???????????# [ #????????????????????????? | | ???????????+ #????????????????????????? | | ???????????# !! """" #????????????????????????? | | ??????????## ! ! """" #????????????????????????? | | ??????????# ! """" #????????????????????????? | | ??????????# #????????????????????????? | | ???######## """ +????????????????????????? | | ???# ## """ #????????????????????????? | | ???# """ ## """ #????????????????????????? | | ???# """ ## #????????????????????????? | | ???# """ ## #????????????????????????? | | ???# ## ! #????????????????????????? | | ???# # #????????????????????????? | | ???# # #######????????????????????????? | | #######+## #??????????????????????????????? | | + ?????????????????????????????? | +----------------------------------------------------+ Best States ------------- Heat Dissipation 48 Energy Generation 23 Energy Capacity 450 Matter Stores 300 Matter Capacity 300 Sight Range 16 Terrain Scan Range 14 Terrain Scan Density 10 Armor Coverage 150 Propulsion Shielding 33 Evasion (%) 62 Item Schematics ----------------- Propulsion Shielding | -8/Materials | Scanalyzed Robot Schematics ------------------ None Fabricated ------------ Nothing Alien Tech Used ----------------- None Achievements -------------- None Challenges ------------ None Game ------ Seed HardcellExperimentalLink Manual? 0 Play Time 00:35:49 Cumulative 15.7 hours Start 2024.04.07 @ 16:33:48 End 2024.04.07 @ 19:08:01 Sessions 2 Manual Loads 0 Difficulty Rogue Special Mode None Game No. 22 Rogue 21 Adventurer 1 Explorer 0 Win Type - Total 0 Types 0/0/0/0/0/0/0/0/0 Lore% 16 Gallery% 23 Achievement% 19 Wizard Run 0 Options --------- Layout 1 ASCII 0 Keyboard 0 Movement Mouse Keybinds 0 Fullscreen 1 Font 24/Smallcaps Map View 50x40 Zoom Use 0% Tactical HUD 0 Map Filters NONE Filters NONE Steam 1 RUN: 927447af-ebff-4ee5-b425-942ed4499d4f